fUST/lending_fUST_20240612
["ID","MTS","AMOUNT","RATE_DAILY","PERIOD"]
[329149748,1718139058447,-500.0,0.00019452,2]
[329149749,1718139058457,-556.56676684,0.00019452,2]
[329149750,1718139058467,-577.32,0.00019452,2]
[329149751,1718139058478,-500.0,0.00019452,2]
[329149752,1718139058491,-500.0,0.00019452,2]
[329149753,1718139058501,-500.0,0.00019452,2]
[329149754,1718139058511,-500.0,0.00019452,2]
[329149755,1718139058521,-1173.62,0.00019452,2]
[329149756,1718139058533,-500.0,0.00019452,2]
[329149757,1718139058544,-500.0,0.00019452,2]
[329149758,1718139058554,-500.0,0.00019452,2]
[329149759,1718139058566,-697.96,0.00019452,2]
[329149760,1718139058576,-500.0,0.00019452,2]
[329149761,1718139058587,-500.0,0.00019452,2]
[329149762,1718139058597,-500.0,0.00019452,2]
[329149763,1718139058608,-500.0,0.00019452,2]
[329149764,1718139058618,-500.0,0.00019452,2]
[329149765,1718139058629,-3034.55,0.00019452,2]
[329149766,1718139058640,-500.0,0.00019452,2]
[329149767,1718139058650,-500.0,0.00019452,2]
[329149768,1718139058660,-500.0,0.00019452,2]
[329149769,1718139058671,-500.0,0.00019452,2]
[329149770,1718139058681,-500.0,0.00019452,2]
[329149771,1718139058692,-500.0,0.00019452,2]
[329149772,1718139058778,-500.0,0.00019452,2]
[329149773,1718139058789,-500.0,0.00019452,2]
[329149774,1718139058801,-500.0,0.00019452,2]
[329149775,1718139058811,-500.0,0.00019452,2]
[329149776,1718139058821,-500.0,0.00019452,2]
[329149777,1718139058832,-500.0,0.00019452,2]
[329149778,1718139058842,-500.0,0.00019452,2]
[329149779,1718139058852,-500.0,0.00019452,2]
[329149780,1718139058863,-500.0,0.00019452,2]
[329149781,1718139058878,-500.0,0.00019452,2]
[329149782,1718139058889,-500.0,0.00019452,2]
[329149783,1718139058900,-500.0,0.00019452,2]
[329149784,1718139058912,-331.209671,0.00019452,2]
[329149785,1718139058927,-500.0,0.00019452,2]
[329149786,1718139058939,-520.09777865,0.00019452,2]
[329149787,1718139058963,-500.0,0.00019452,2]
[329149788,1718139058974,-1911.28,0.00019452,2]
[329149789,1718139058985,-541.75930841,0.00019452,2]
[329149790,1718139058996,-1000.0,0.000195,2]
[329149791,1718139059008,-4239.70515949,0.00019671,2]
[329149792,1718139059018,-500.0,0.00019723,2]
[329149793,1718139059029,-3412.14,0.00019723,2]
[329149794,1718139059040,-155.01085076,0.00019724,2]
[329149795,1718139059051,-309.97985696,0.00019724,2]
[329149796,1718139059062,-1983.49857414,0.00019724,2]
[329149797,1718139059072,-500.0,0.00019724,2]
[329149798,1718139059082,-3412.14,0.00019724,2]
[329149799,1718139059092,-500.0,0.00019725,2]
[329149800,1718139059103,-500.0,0.00019725,2]
[329149801,1718139059113,-500.0,0.00019725,2]
[329149802,1718139059126,-3412.14,0.00019725,2]
[329149803,1718139059136,-3412.14,0.00019725,2]
[329149804,1718139059146,-3412.14,0.00019725,2]
[329149805,1718139059157,-500.0,0.00019726,2]
[329149806,1718139059167,-500.0,0.00019726,2]
[329149807,1718139059178,-500.0,0.00019726,2]
[329149808,1718139059189,-500.0,0.00019726,2]
[329149809,1718139059201,-640.51425021,0.00019726,2]
[329149810,1718139059212,-199.61115087,0.00019726,2]
[329149811,1718139059222,-503.01410505,0.00019726,2]
[329149812,1718139059232,-500.0,0.00019726,2]
[329149813,1718139059243,-442.7621031,0.00019726,2]
[329149814,1718139059254,-500.0,0.00019726,2]
[329149815,1718139059265,-500.0,0.00019726,2]
[329149816,1718139059275,-500.0,0.00019726,2]
[329149817,1718139059285,-500.0,0.00019726,2]
[329149818,1718139059297,-500.0,0.00019726,2]
[329149819,1718139059308,-500.0,0.00019726,2]
[329149820,1718139059318,-232.89997657,0.00019726,2]
[329149821,1718139059328,-500.0,0.00019726,2]
[329149822,1718139059339,-500.0,0.00019726,2]
[329149823,1718139059350,-500.0,0.00019726,2]
[329149824,1718139059361,-502.83838445,0.00019726,2]
[329149825,1718139059372,-500.0,0.00019726,2]
[329149826,1718139059382,-500.0,0.00019726,2]
[329149827,1718139059393,-511.10757573,0.00019726,2]
[329149828,1718139059404,-500.0,0.00019726,2]
[329149829,1718139059415,-500.0,0.00019726,2]
[329149830,1718139059426,-418.9734864,0.00019726,2]
[329149831,1718139059441,-500.0,0.00019726,2]
[329149832,1718139059454,-500.0,0.00019726,2]
[329149833,1718139059470,-500.0,0.00019726,2]
[329149834,1718139059485,-500.0,0.00019726,2]
[329149835,1718139059495,-500.0,0.00019726,2]
[329149836,1718139059506,-500.0,0.00019726,2]
[329149837,1718139059520,-500.0,0.00019726,2]
[329149838,1718139059532,-500.0,0.00019726,2]
[329149839,1718139059543,-500.0,0.00019726,2]
[329149840,1718139059556,-500.0,0.00019726,2]
[329149841,1718139059568,-500.0,0.00019726,2]
[329149842,1718139059579,-500.0,0.00019726,2]
[329149843,1718139059591,-509.45263125,0.00019726,2]
[329149844,1718139059601,-500.0,0.00019726,2]
[329149845,1718139059612,-500.0,0.00019726,2]
[329149846,1718139059624,-500.0,0.00019726,2]
[329149847,1718139059637,-500.0,0.00019726,2]
[329149848,1718139059648,-500.0,0.00019726,2]
[329149849,1718139059659,-500.0,0.00019726,2]
[329149850,1718139059669,-500.0,0.00019726,2]
[329149851,1718139059679,-500.0,0.00019726,2]
[329149852,1718139059689,-500.0,0.00019726,2]
[329149853,1718139059700,-500.0,0.00019726,2]
[329149854,1718139059730,-597.43222242,0.00019726,2]
[329149855,1718139059741,-500.0,0.00019726,2]
[329149856,1718139059755,-500.0,0.00019726,2]
[329149857,1718139059766,-507.36631062,0.00019726,2]
[329149858,1718139059777,-500.0,0.00019726,2]
[329149859,1718139059788,-209.30122372,0.00019726,2]
[329149860,1718139059800,-500.0,0.00019726,2]
[329149861,1718139059810,-500.0,0.00019726,2]
[329149862,1718139059822,-500.0,0.00019726,2]
[329149863,1718139059833,-500.0,0.00019726,2]
[329149864,1718139059844,-500.0,0.00019726,2]
[329149865,1718139059854,-526.20611635,0.00019726,2]
[329149866,1718139059865,-500.0,0.00019726,2]
[329149867,1718139059875,-500.0,0.00019726,2]
[329149868,1718139059887,-500.0,0.00019726,2]
[329149869,1718139059899,-542.44,0.00019726,2]
[329149870,1718139059910,-500.0,0.00019726,2]
[329149871,1718139059920,-500.0,0.00019726,2]
[329149872,1718139059931,-3295.44,0.00019726,2]
[329149873,1718139059942,-500.0,0.00019726,2]
[329149874,1718139059954,-500.0,0.00019726,2]
[329149875,1718139059964,-500.0,0.00019726,4]
[329149876,1718139059975,-500.0,0.00019726,2]
[329149877,1718139059986,-823.58,0.00019726,2]
[329149878,1718139059996,-500.0,0.00019726,2]
[329149879,1718139060007,-500.0,0.00019726,2]
[329149880,1718139060021,-500.0,0.00019726,2]
[329149881,1718139060039,-500.0,0.00019726,2]
[329149882,1718139060057,-500.0,0.00019726,2]
[329149883,1718139060070,-500.0,0.00019726,2]
[329149884,1718139060084,-500.0,0.00019726,2]
[329149885,1718139060099,-500.0,0.00019726,2]
[329149886,1718139060110,-500.0,0.00019726,2]
[329149887,1718139060124,-526.93029764,0.00019726,2]
[329149888,1718139060139,-500.0,0.00019726,2]
[329149889,1718139060151,-500.0,0.00019726,2]
[329149890,1718139060162,-500.0,0.00019726,2]
[329149891,1718139060173,-500.0,0.00019726,2]
[329149892,1718139060184,-505.53855053,0.00019726,2]
[329149893,1718139060197,-500.0,0.00019726,2]
[329149894,1718139060208,-500.0,0.00019726,2]
[329149895,1718139060219,-1274.34,0.00019726,2]
[329149896,1718139060237,-500.0,0.00019726,2]
[329149897,1718139060248,-500.0,0.00019726,2]
[329149898,1718139060263,-500.0,0.00019726,2]
[329149899,1718139060273,-151.0,0.00019726,2]
[329149900,1718139060283,-1529.285588,0.00019726,2]
[329149901,1718139060293,-1529.285588,0.00019726,2]
[329149902,1718139060304,-500.0,0.00019726,2]
[329149903,1718139060316,-816.06,0.00019726,2]
[329149904,1718139060326,-500.0,0.00019726,2]
[329149905,1718139060338,-500.0,0.00019726,2]
[329149906,1718139060348,-500.0,0.00019726,2]
[329149907,1718139060360,-857.78,0.00019726,2]
[329149908,1718139060374,-680.28,0.00019726,2]
[329149909,1718139060385,-180.7908262,0.00019726,2]
[329149910,1718139060399,-500.0,0.00019726,2]
[329149911,1718139060420,-151.0,0.00019726,2]
[329149912,1718139060436,-151.0,0.00019726,2]
[329149913,1718139060458,-500.0,0.00019726,2]
[329149914,1718139060486,-500.0,0.00019726,2]
[329149915,1718139060498,-151.0,0.00019726,2]
[329149916,1718139060509,-500.0,0.00019726,2]
[329149917,1718139060524,-500.0,0.00019726,2]
[329149918,1718139060540,-151.0,0.00019726,2]
[329149919,1718139060553,-500.0,0.00019726,2]
[329149920,1718139060568,-500.0,0.00019726,2]
[329149921,1718139060580,-151.0,0.00019726,2]
[329149922,1718139060591,-500.0,0.00019726,2]
[329149923,1718139060602,-151.0,0.00019726,2]
[329149924,1718139060615,-169.423373,0.00019726,2]
[329149925,1718139060629,-500.0,0.00019726,2]
[329149926,1718139060640,-500.0,0.00019726,2]
[329149927,1718139060651,-151.0,0.00019726,2]
[329149928,1718139060661,-500.0,0.00019726,2]
[329149929,1718139060672,-500.0,0.00019726,2]
[329149930,1718139060683,-500.0,0.00019726,2]
[329149931,1718139060694,-3290.97,0.00019726,2]
[329149932,1718139060704,-500.0,0.00019726,2]
[329149933,1718139060740,-500.0,0.00019726,2]
[329149934,1718139060754,-551.0,0.00019726,2]
[329149935,1718139060765,-500.0,0.00019726,2]
[329149936,1718139060775,-500.0,0.00019726,2]
[329149937,1718139060785,-500.0,0.00019726,2]
[329149938,1718139060797,-1978.51,0.00019726,2]
[329149939,1718139060879,-500.0,0.00019726,2]
[329149940,1718139060889,-10081.8,0.00019726,2]
[329149941,1718139060900,-500.0,0.00019726,2]
[329149942,1718139060910,-500.0,0.00019726,2]
[329149943,1718139060919,-500.0,0.00019726,2]
[329149944,1718139060929,-500.0,0.00019726,2]
[329149945,1718139060940,-500.0,0.00019726,2]
[329149946,1718139060950,-500.0,0.00019726,2]
[329149947,1718139060961,-500.0,0.00019726,2]
[329149948,1718139060971,-1652.4,0.00019726,2]
[329149949,1718139060981,-500.0,0.00019726,2]
[329149950,1718139060993,-567.63,0.00019726,2]
[329149951,1718139061003,-500.0,0.00019726,2]
[329149952,1718139061013,-500.0,0.00019726,2]
[329149953,1718139061031,-7648.74,0.00019726,2]
[329149954,1718139061042,-2384.04,0.00019726,2]
[329149955,1718139061053,-500.0,0.00019726,2]
[329149956,1718139061065,-500.0,0.00019726,2]
[329149957,1718139061079,-500.0,0.00019726,2]
[329149958,1718139061090,-500.0,0.00019726,2]
[329149959,1718139061103,-500.0,0.00019726,2]
[329149960,1718139061114,-500.0,0.00019726,2]
[329149961,1718139061124,-506.66800841,0.00019726,2]
[329149962,1718139061135,-500.0,0.00019726,2]
[329149963,1718139061146,-431.18,0.00019726,2]
[329149964,1718139061156,-500.0,0.00019726,2]
[329149965,1718139061166,-500.0,0.00019726,2]
[329149966,1718139061177,-500.0,0.00019726,2]
[329149967,1718139061187,-6247.5,0.00019726,2]
[329149968,1718139061198,-500.0,0.00019726,2]
[329149969,1718139061209,-500.0,0.00019726,2]
[329149970,1718139061220,-610.52,0.00019726,2]
[329149971,1718139061230,-500.0,0.00019726,2]
[329149972,1718139061241,-500.0,0.00019726,2]
[329149973,1718139061252,-500.0,0.00019726,2]
[329149974,1718139061263,-151.0,0.00019726,2]
[329149975,1718139061274,-500.0,0.00019726,2]
[329149976,1718139061284,-500.0,0.00019726,2]
[329149977,1718139061297,-500.0,0.00019726,2]
[329149978,1718139061307,-500.0,0.00019726,2]
[329149979,1718139061318,-500.0,0.00019726,2]
[329149980,1718139061330,-500.0,0.00019726,2]
[329149981,1718139061342,-500.0,0.00019726,2]
[329149982,1718139061353,-500.0,0.00019726,2]
[329149983,1718139061364,-500.0,0.00019726,2]
[329149984,1718139061375,-636.91946243,0.00019726,2]
[329149985,1718139061387,-619.06,0.00019726,2]
[329149986,1718139061400,-500.0,0.00019726,2]
[329149987,1718139061413,-518.53561094,0.00019726,2]
[329149988,1718139061424,-1440.73,0.00019726,2]
[329149989,1718139061435,-500.0,0.00019726,2]
[329149990,1718139061452,-158.88348,0.00019726,2]
[329149991,1718139061463,-577.32,0.00019726,2]
[329149992,1718139061474,-500.0,0.00019726,2]
[329149993,1718139061484,-500.0,0.00019726,2]
[329149994,1718139061495,-500.0,0.00019726,2]
[329149995,1718139061505,-500.0,0.00019726,2]
[329149996,1718139061515,-1173.62,0.00019726,2]
[329149997,1718139061528,-500.0,0.00019726,2]
[329149998,1718139061539,-500.0,0.00019726,2]
[329149999,1718139061550,-713.967356,0.00019726,2]
[329150000,1718139061562,-697.96,0.00019726,2]
[329150001,1718139061572,-500.0,0.00019726,2]
[329150002,1718139061582,-713.967356,0.00019726,2]
[329150003,1718139061593,-500.0,0.00019726,2]
[329150004,1718139061604,-582.78509289,0.00019726,2]
[329150005,1718139061868,155.01085076,9.999e-05,2]
[329150006,1718139062004,-256.72854594,0.00019178,2]
[329150007,1718139062016,-25.77145406,0.00019178,2]
[329150008,1718139062048,-474.22854594,0.00019178,2]
[329150009,1718139062064,-531.39802722,0.00019452,2]
[329150010,1718139062075,-417.21490711,0.00019726,2]
[329150011,1718139062086,-546.94567913,0.00019726,2]
[329150012,1718139062096,-151.0,0.00019726,2]
[329150013,1718139062107,-1000.0,0.00019726,2]
[329150014,1718139062117,-1000.0,0.00019726,2]
[329150015,1718139062128,-548.64049663,0.00019726,2]
[329150016,1718139062139,-1000.0,0.00019726,2]
[329150017,1718139062149,-500.0,0.00019726,2]
[329150018,1718139062160,-829.20568218,0.00019726,2]
[329150019,1718139186082,4220.24270034,0.00017144,2]
[329150020,1718139186442,4220.24270034,0.00017377,2]
[329150021,1718139187355,1559.51459932,0.00017783,2]
[329150022,1718139187395,2660.72810102,0.00017783,2]
[329150023,1718139187772,4220.24270034,0.00017867,2]
[329150024,1718139226715,155.42727592,0.00017867,2]
[329150025,1718139238267,191.99139099,0.00017867,2]
[329150026,1718139312425,1771.61053173,0.00017844,2]
[329150027,1718139412809,275.67415562,0.000165,2]
[329150028,1718139580832,162.5158596,0.00016874,2]
[329150029,1718139635788,2363.799038,0.00016874,2]
[329150030,1718139689978,6198.01094678,0.00016835,2]
[329150031,1718139690015,9000.0,0.00016835,2]
[329150032,1718139837773,412.636718,0.0001659,2]
[329150033,1718139955785,6715.80503067,0.0001,6]
[329150124,1718140233379,-569.0,0.00016834,2]
[329150125,1718140233401,-9975.36124938,0.00016834,2]
[329150127,1718140233413,-9701.98905322,0.00016835,2]
[329150129,1718140233432,-19313.15373324,0.00016835,2]
[329150131,1718140233450,-2092.61431553,0.0001774,2]
[329150133,1718140233463,-927.3752309,0.0001784,2]
[329150135,1718140233480,-158.75533805,0.0001784,2]
[329150137,1718140233497,-208.24440478,0.0001784,2]
[329150140,1718140233524,-182.0047069,0.0001784,2]
[329150143,1718140233557,-21548.38188732,0.0001784,2]
[329150145,1718140233591,-155.01085076,0.00017841,2]
[329150147,1718140233605,-1983.49857414,0.00017841,2]
[329150150,1718140233618,-5528.04363761,0.00017842,2]
[329150164,1718140233806,-913.496781,0.00017842,2]
[329150168,1718140233844,-269.24912565,0.00017842,2]
[329150267,1718140242403,-24075.20136166,0.00017842,2]
[329150269,1718140242423,-28156.72682371,0.00017842,2]
[329150270,1718140242435,-424.78866195,0.00018235,2]
[329150273,1718140242453,-1355.41274288,0.00018335,2]
[329150275,1718140242469,-155.03565734,0.00018336,2]
[329150277,1718140242481,-424.78866194,0.00018446,2]
[329150279,1718140242494,-606.81007704,0.000185,2]
[329150281,1718140242508,-424.78866194,0.00018657,2]
[329150283,1718140242519,-424.78866194,0.00018867,2]
[329150284,1718140242530,-806.68573223,0.000189,2]
[329150285,1718140242542,-3422.91777674,0.00019,3]
[329150288,1718140242554,-3454.04329286,0.00019,2]
[329150360,1718140244631,-3815.55267034,0.00019,2]
[329150361,1718140244642,-163.11846323,0.00019,2]
[329150362,1718140244653,-2092.61431549,0.00019049,2]
[329150363,1718140244666,-424.78866194,0.00019078,2]
[329150364,1718140244677,-309.97985696,0.00019174,2]
[329150365,1718140244687,-1058.42857911,0.00019175,2]
[329150367,1718140244699,-275.26596181,0.00019175,2]
[329150368,1718140244714,-692.46643816,0.00019176,2]
[329150369,1718140244725,-2764.13862909,0.00019176,2]
[329150370,1718140244736,-155.95984158,0.00019176,2]
[329150371,1718140244747,-160.89576059,0.00019176,2]
[329150372,1718140244759,-616.4291156,0.00019176,2]
[329150373,1718140244770,-190.49958795,0.00019176,2]
[329150374,1718140244782,-2410.47181677,0.00019176,2]
[329150376,1718140244793,-7206.62047762,0.00019176,2]
[329150377,1718140244804,-12124.83445454,0.00019176,2]
[329150378,1718140244818,-200.39532959,0.00019176,2]
[329150379,1718140244828,-312.02515035,0.00019176,2]
[329150380,1718140244843,-206.49802871,0.00019176,2]
[329150381,1718140244853,-216.30293909,0.00019176,2]
[329150382,1718140244865,-6360.44752777,0.00019177,2]
[329150383,1718140244878,-21498.60913473,0.00019178,15]
[329150384,1718140244890,-178.47489747,0.00019178,2]
[329150385,1718140244903,-500.0,0.00019178,2]
[329150386,1718140244918,-500.0,0.00019178,2]
[329150387,1718140244930,-2027.05115816,0.00019178,2]
[329150388,1718140244945,-500.0,0.00019178,2]
[329150389,1718140244959,-2027.05115816,0.00019178,2]
[329150390,1718140244971,-500.0,0.00019178,2]
[329150391,1718140244984,-2027.05115816,0.00019178,2]
[329150392,1718140245003,-500.0,0.00019178,2]
[329150393,1718140245018,-2027.05115816,0.00019178,2]
[329150394,1718140245032,-500.0,0.00019178,2]
[329150395,1718140245047,-2027.05115816,0.00019178,2]
[329150396,1718140245061,-500.0,0.00019178,2]
[329150397,1718140245074,-2027.05115816,0.00019178,2]
[329150398,1718140245086,-500.0,0.00019178,2]
[329150399,1718140245100,-500.0,0.00019178,2]
[329150400,1718140245116,-2027.05115816,0.00019178,2]
[329150401,1718140245126,-500.0,0.00019178,2]
[329150402,1718140245138,-438.90744926,0.00019178,2]
[329150403,1718140245152,-345.04838595,0.00019178,2]
[329150404,1718140245163,-2027.05115816,0.00019178,2]
[329150405,1718140245179,-500.0,0.00019178,2]
[329150406,1718140245202,-500.0,0.00019178,2]
[329150407,1718140245217,-2027.05115816,0.00019178,2]
[329150408,1718140245231,-500.0,0.00019178,2]
[329150409,1718140245243,-2027.05115816,0.00019178,2]
[329150411,1718140245254,-2027.05115816,0.00019178,2]
[329150412,1718140245265,-2027.05115816,0.00019178,2]
[329150414,1718140245276,-500.0,0.00019178,2]
[329150416,1718140245286,-2027.05115816,0.00019178,2]
[329150418,1718140245297,-2027.05115816,0.00019178,2]
[329150420,1718140245307,-500.0,0.00019178,2]
[329150422,1718140245318,-500.0,0.00019178,2]
[329150424,1718140245328,-2027.05115816,0.00019178,2]
[329150426,1718140245339,-500.0,0.00019178,2]
[329150428,1718140245349,-2027.05115816,0.00019178,2]
[329150430,1718140245360,-2027.05115816,0.00019178,2]
[329150432,1718140245370,-2027.05115816,0.00019178,2]
[329150434,1718140245380,-2027.05115816,0.00019178,2]
[329150435,1718140245392,-500.0,0.00019178,2]
[329150436,1718140245403,-2027.05115816,0.00019178,2]
[329150437,1718140245424,-500.0,0.00019178,2]
[329150438,1718140245437,-2027.05115816,0.00019178,2]
[329150439,1718140245449,-2027.05115816,0.00019178,2]
[329150440,1718140245460,-2027.05115816,0.00019178,2]
[329150441,1718140245473,-2027.05115816,0.00019178,2]
[329150442,1718140245483,-2027.05115816,0.00019178,2]
[329150443,1718140245493,-2027.05115816,0.00019178,2]
[329150444,1718140245502,-2027.05115816,0.00019178,2]
[329150445,1718140245512,-2027.05115816,0.00019178,2]
[329150446,1718140245521,-2027.05115816,0.00019178,2]
[329150448,1718140245531,-2027.05115816,0.00019178,2]
[329150449,1718140245541,-2027.05115816,0.00019178,2]
[329150451,1718140245551,-2027.05115816,0.00019178,2]
[329150453,1718140245560,-187.46185033,0.00019178,2]
[329150455,1718140245570,-500.0,0.00019178,2]
[329150457,1718140245580,-500.0,0.00019178,2]
[329150459,1718140245589,-486.04691952,0.00019178,2]
[329150461,1718140245599,-222.25122045,0.00019178,2]
[329150463,1718140245610,-500.0,0.00019178,2]
[329150465,1718140245620,-500.0,0.00019178,2]
[329150467,1718140245630,-467.27665276,0.00019178,2]
[329150469,1718140245639,-500.0,0.00019178,2]
[329150471,1718140245649,-2697.0255855,0.00019178,2]
[329150473,1718140245659,-2697.0255855,0.00019178,2]
[329150475,1718140245668,-2697.0255855,0.00019178,2]
[329150477,1718140245678,-2697.0255855,0.00019178,2]
[329150479,1718140245688,-2697.0255855,0.00019178,2]
[329150481,1718140245698,-2697.0255855,0.00019178,2]
[329150483,1718140245709,-2697.0255855,0.00019178,2]
[329150485,1718140245720,-2697.0255855,0.00019178,2]
[329150487,1718140245730,-2697.0255855,0.00019178,2]
[329150489,1718140245741,-2697.0255855,0.00019178,2]
[329150491,1718140245751,-2697.0255855,0.00019178,2]
[329150493,1718140245761,-2697.0255855,0.00019178,2]
[329150495,1718140245771,-2697.0255855,0.00019178,2]
[329150497,1718140245782,-2697.0255855,0.00019178,2]
[329150499,1718140245792,-500.0,0.00019178,2]
[329150501,1718140245806,-500.0,0.00019178,2]
[329150503,1718140245816,-2697.0255855,0.00019178,2]
[329150505,1718140245826,-500.0,0.00019178,2]
[329150507,1718140245840,-627.69524471,0.00019178,2]
[329150509,1718140245851,-2697.0255855,0.00019178,2]
[329150511,1718140245861,-625.38613327,0.00019178,2]
[329150513,1718140245872,-500.0,0.00019178,2]
[329150515,1718140245883,-2697.0255855,0.00019178,2]
[329150517,1718140245893,-500.0,0.00019178,2]
[329150519,1718140245908,-500.0,0.00019178,2]
[329150521,1718140245919,-500.0,0.00019178,2]
[329150523,1718140245930,-500.0,0.00019178,2]
[329150524,1718140245940,-500.0,0.00019178,2]
[329150526,1718140245950,-500.0,0.00019178,2]
[329150528,1718140245960,-500.0,0.00019178,2]
[329150530,1718140245973,-500.0,0.00019178,2]
[329150532,1718140245986,-501.12424627,0.00019178,2]
[329150534,1718140245996,-208.7336042,0.00019178,2]
[329150536,1718140246007,-500.0,0.00019178,2]
[329150538,1718140246017,-490.0,0.00019178,2]
[329150540,1718140246027,-500.0,0.00019178,2]
[329150543,1718140246038,-387.81507343,0.00019178,2]
[329150545,1718140246050,-500.0,0.00019178,2]
[329150547,1718140246066,-500.0,0.00019178,2]
[329150549,1718140246076,-500.0,0.00019178,2]
[329150551,1718140246086,-456.89722928,0.00019178,2]
[329150553,1718140246096,-500.0,0.00019178,2]
[329150555,1718140246107,-500.0,0.00019178,2]
[329150557,1718140246119,-500.0,0.00019178,2]
[329150560,1718140246130,-500.0,0.00019178,2]
[329150561,1718140246143,-500.0,0.00019178,2]
[329150563,1718140246155,-500.0,0.00019178,2]
[329150565,1718140246165,-500.0,0.00019178,2]
[329150567,1718140246175,-231.2424865,0.00019178,2]
[329150569,1718140246186,-500.0,0.00019178,2]
[329150571,1718140246210,-500.0,0.00019178,2]
[329150573,1718140246221,-526.72271553,0.00019178,2]
[329150575,1718140246232,-500.0,0.00019178,2]
[329150577,1718140246243,-500.0,0.00019178,2]
[329150579,1718140246253,-500.0,0.00019178,2]
[329150581,1718140246270,-500.0,0.00019178,2]
[329150583,1718140246281,-155.2821063,0.00019178,2]
[329150585,1718140246291,-500.0,0.00019178,2]
[329150587,1718140246301,-500.0,0.00019178,2]
[329150589,1718140246312,-500.0,0.00019178,2]
[329150591,1718140246323,-500.0,0.00019178,2]
[329150593,1718140246334,-346.7942325,0.00019178,2]
[329150595,1718140246344,-509.83532871,0.00019178,2]
[329150597,1718140246354,-500.0,0.00019178,2]
[329150599,1718140246364,-500.0,0.00019178,2]
[329150601,1718140246375,-500.0,0.00019178,2]
[329150603,1718140246387,-500.0,0.00019178,2]
[329150605,1718140246398,-500.0,0.00019178,2]
[329150607,1718140246408,-500.0,0.00019178,2]
[329150609,1718140246419,-500.0,0.00019178,2]
[329150611,1718140246431,-500.0,0.00019178,2]
[329150613,1718140246442,-500.0,0.00019178,2]
[329150615,1718140246457,-500.0,0.00019178,2]
[329150619,1718140246556,-500.0,0.00019178,2]
[329150620,1718140246568,-500.0,0.00019178,2]
[329150622,1718140246578,-500.0,0.00019178,2]
[329150624,1718140246590,-500.0,0.00019178,2]
[329150626,1718140246602,-500.0,0.00019178,2]
[329150628,1718140246617,-500.0,0.00019178,2]
[329150630,1718140246628,-528.55081289,0.00019178,2]
[329150632,1718140246641,-500.0,0.00019178,2]
[329150634,1718140246653,-500.0,0.00019178,2]
[329150636,1718140246665,-500.0,0.00019178,2]
[329150638,1718140246683,-503.39163515,0.00019178,2]
[329150640,1718140246705,-500.0,0.00019178,2]
[329150643,1718140246730,-500.0,0.00019178,2]
[329150644,1718140246741,-500.0,0.00019178,2]
[329150646,1718140246752,-500.0,0.00019178,2]
[329150648,1718140246767,-528.41681732,0.00019178,2]
[329150649,1718140246782,-500.0,0.00019178,2]
[329150652,1718140246796,-172.19451839,0.00019178,2]
[329150654,1718140246810,-425.84361275,0.00019178,2]
[329150655,1718140246825,-500.0,0.00019178,2]
[329150657,1718140246838,-374.78621774,0.00019178,2]
[329150659,1718140246852,-500.0,0.00019178,2]
[329150661,1718140246865,-601.68024103,0.00019178,2]
[329150663,1718140246876,-500.0,0.00019178,2]
[329150665,1718140246888,-508.62635649,0.00019178,2]
[329150666,1718140246900,-234.68044641,0.00019178,2]
[329150668,1718140246912,-500.0,0.00019178,2]
[329150670,1718140246924,-500.0,0.00019178,2]
[329150672,1718140246935,-500.0,0.00019178,2]